fUSD/lending_fUSD_20260405
["ID","MTS","AMOUNT","RATE_DAILY","PERIOD"]
[419845253,1775416244472,-150.0,0.00013699,2]
[419845254,1775416244481,-150.0,0.00013699,2]
[419845255,1775416244491,-150.0,0.00013699,2]
[419845256,1775416244500,-150.0,0.00013699,2]
[419845257,1775416244509,-150.0,0.00013699,2]
[419845258,1775416244519,-150.0,0.00013699,2]
[419845259,1775416244528,-150.0,0.00013699,2]
[419845260,1775416244538,-150.0,0.00013699,2]
[419845261,1775416244547,-166.66,0.00013699,2]
[419845262,1775416244557,-191.33,0.00013699,2]
[419845263,1775416244566,-444.19,0.00013699,2]
[419845264,1775416244576,-370.16,0.00013699,2]
[419845265,1775416244585,-308.47,0.00013699,2]
[419845266,1775416244595,-257.05,0.00013699,2]
[419845267,1775416244604,-214.21,0.00013699,2]
[419845268,1775416244613,-178.51,0.00013699,2]
[419845269,1775416244622,-892.58,0.00013699,2]
[419845270,1775416244632,-717.06,0.00013699,2]
[419845271,1775416244641,-500.0,0.00013699,2]
[419845272,1775416244651,-500.0,0.00013699,2]
[419845273,1775416244660,-500.0,0.00013699,2]
[419845274,1775416244669,-500.0,0.00013699,2]
[419845275,1775416244678,-500.0,0.00013699,2]
[419845276,1775416244688,-500.0,0.00013699,2]
[419845277,1775416244697,-500.0,0.00013699,2]
[419845278,1775416244707,-500.0,0.00013699,2]
[419845279,1775416244716,-598.99606082,0.00013699,2]
[419845280,1775416244725,-500.0,0.00013699,2]
[419845281,1775416244735,-500.0,0.00013699,2]
[419845282,1775416244744,-339.79133416,0.00013699,2]
[419845283,1775416244754,-500.0,0.00013699,2]
[419845284,1775416244764,-500.0,0.00013699,2]
[419845285,1775416244773,-500.0,0.00013699,2]
[419845286,1775416244783,-403.93256284,0.00013699,2]
[419845287,1775416244792,-500.0,0.00013699,2]
[419845288,1775416244802,-519.03182682,0.00013699,2]
[419845289,1775416244812,-500.0,0.00013699,2]
[419845290,1775416244821,-500.0,0.00013699,2]
[419845291,1775416244830,-500.0,0.00013699,2]
[419845292,1775416244840,-500.0,0.00013699,2]
[419845293,1775416244849,-163.60261744,0.00013699,2]
[419845294,1775416244859,-500.0,0.00013699,2]
[419845295,1775416244868,-500.0,0.00013699,2]
[419845296,1775416244877,-500.0,0.00013699,2]
[419845297,1775416244886,-211.04857142,0.00013699,2]
[419845298,1775416244895,-385.86149772,0.00013699,2]
[419845299,1775416244904,-607.20051974,0.00013699,2]
[419845300,1775416244913,-500.0,0.00013699,2]
[419845301,1775416244922,-500.0,0.00013699,2]
[419845302,1775416244932,-500.0,0.00013699,2]
[419845303,1775416244941,-500.0,0.00013699,2]
[419845304,1775416244950,-500.0,0.00013699,2]
[419845305,1775416244960,-160.7467095,0.00013699,2]
[419845306,1775416244969,-500.0,0.00013699,2]
[419845307,1775416244979,-500.0,0.00013699,2]
[419845308,1775416244988,-500.0,0.00013699,2]
[419845309,1775416244997,-500.0,0.00013699,2]
[419845310,1775416245007,-500.0,0.00013699,2]
[419845311,1775416245016,-518.73332026,0.00013699,2]
[419845312,1775416245025,-515.7358709,0.00013699,2]
[419845313,1775416245035,-162.72924009,0.00013699,2]
[419845314,1775416245044,-500.0,0.00013699,2]
[419845315,1775416245054,-210.98153295,0.00013699,2]
[419845316,1775416245063,-569.20510167,0.00013699,2]
[419845317,1775416245072,-500.0,0.00013699,2]
[419845318,1775416245082,-312.74353669,0.00013699,2]
[419845319,1775416245091,-168.69935806,0.00013699,2]
[419845320,1775416245101,-500.0,0.00013699,2]
[419845321,1775416245111,-202.64993829,0.00013699,2]
[419845322,1775416245120,-500.0,0.00013699,2]
[419845323,1775416245129,-500.50066882,0.00013699,2]
[419845324,1775416245138,-500.0,0.00013699,2]
[419845325,1775416245147,-500.0,0.00013699,2]
[419845326,1775416245156,-500.0,0.00013699,2]
[419845327,1775416245166,-500.0,0.00013699,2]
[419845328,1775416245175,-152.37,0.00013699,2]
[419845329,1775416245184,-500.0,0.00013699,2]
[419845330,1775416245195,-633.93373005,0.00013699,2]
[419845331,1775416245205,-162.49,0.000137,2]
[419845332,1775416245214,-150.0,0.00013784,2]
[419845333,1775416245223,-267.272602,0.00013785,2]
[419845334,1775416245233,-24629.54664536,0.00013796,2]
[419845335,1775416245242,-21076.04228361,0.00013796,2]
[419845336,1775416245251,-1900.0,0.00013808,2]
[419845337,1775416245261,-200.0,0.00013834,2]
[419845338,1775416245271,-166.66,0.00013836,2]
[419845339,1775416245281,-6203.9605955,0.00013836,2]
[419845340,1775416245291,-500.0,0.00013841,2]
[419845341,1775416245302,-3426.0,0.00013867,5]
[419845342,1775416245312,-414.97,0.00013873,2]
[419845343,1775416245323,-393.94,0.000139,2]
[419845344,1775416245332,-1458.68,0.000139,2]
[419845345,1775416245342,-2109.35,0.000139,2]
[419845346,1775416245352,-1611.98,0.000139,2]
[419845347,1775416245362,-732.89,0.000139,2]
[419845348,1775416245371,-168.7927,0.000139,2]
[419845349,1775416245380,-178.831115,0.00013902,2]
[419845350,1775416245390,-155.19654635,0.00013929,2]
[419845351,1775416245400,-1680.0,0.00013938,2]
[419845352,1775416245410,-166.66,0.0001395,2]
[419845353,1775416245420,-150.0,0.00013973,2]
[419845354,1775416245430,-150.0,0.00013973,2]
[419845355,1775416245441,-150.0,0.00013973,2]
[419845356,1775416245451,-150.0,0.00013973,2]
[419845357,1775416245461,-150.0,0.00013973,2]
[419845358,1775416245471,-150.0,0.00013973,2]
[419845359,1775416245481,-166.66,0.00013973,2]
[419845360,1775416245491,-500.0,0.00013973,2]
[419845361,1775416245500,-621.04576426,0.00013973,2]
[419845362,1775416245510,-1500.0,0.00014,2]
[419845363,1775416245519,-500.0,0.00014005,2]
[419845364,1775416245528,-624.13,0.00014005,2]
[419845365,1775416245537,-500.0,0.00014005,2]
[419845366,1775416245547,-500.0,0.00014005,2]
[419845367,1775416245557,-500.0,0.00014005,2]
[419845368,1775416245568,-808.56,0.00014005,2]
[419845369,1775416245577,-500.0,0.00014005,2]
[419845370,1775416245588,-60000.0,0.00014006,2]
[419845371,1775416245599,-150.0,0.00014082,2]
[419845372,1775416245608,-500.0,0.00014095,2]
[419845373,1775416245618,-500.0,0.00014096,2]
[419845374,1775416245627,-1103.2,0.00014096,2]
[419845375,1775416245636,-985.3,0.00014096,2]
[419845376,1775416245645,-652.81,0.00014096,2]
[419845377,1775416245655,-1199.80508007,0.00014097,2]
[419845378,1775416245664,-24629.54664536,0.00014097,2]
[419845379,1775416245673,-21076.04228361,0.00014097,2]
[419845380,1775416245683,-166.66,0.0001411,2]
[419845381,1775416245693,-500.0,0.00014115,2]
[419845382,1775416245703,-2000.0,0.00014136,2]
[419845383,1775416245713,-160.0,0.00014156,7]
[419845384,1775416245724,-2012.119563,0.00014156,7]
[419845385,1775416245733,-3864.239126,0.00014156,7]
[419845386,1775416245742,-160.0,0.00014156,2]
[419845387,1775416245752,-1655.897271,0.00014156,2]
[419845388,1775416245761,-3151.794543,0.00014156,2]
[419845389,1775416245770,-160.0,0.00014156,7]
[419845390,1775416245779,-6324.768645,0.00014156,7]
[419845391,1775416245789,-12489.537291,0.00014156,7]
[419845392,1775416245798,-160.0,0.00014156,2]
[419845393,1775416245807,-3648.93038,0.00014156,2]
[419845394,1775416245817,-7137.86076,0.00014156,2]
[419845395,1775416245826,-504.0,0.0001419,2]
[419845396,1775416245836,-255.0,0.00014207,2]
[419845397,1775416245850,-166.66,0.00014247,2]
[419845398,1775416245867,-150.0,0.00014247,2]
[419845399,1775416245882,-150.0,0.00014247,2]
[419845400,1775416245892,-150.0,0.00014247,2]
[419845401,1775416245902,-150.0,0.00014247,2]
[419845402,1775416245911,-150.0,0.00014247,2]
[419845403,1775416245921,-150.0,0.00014247,2]
[419845404,1775416245930,-1000.0,0.00014247,2]
[419845405,1775416245939,-1000.0,0.00014247,2]
[419845406,1775416245949,-1000.0,0.00014247,2]
[419845407,1775416245958,-1000.0,0.00014247,2]
[419845408,1775416245967,-1000.0,0.00014247,2]
[419845409,1775416245976,-1000.0,0.00014247,2]
[419845410,1775416245986,-1000.0,0.00014247,2]
[419845411,1775416245995,-1000.0,0.00014247,2]
[419845412,1775416246004,-1000.0,0.00014247,2]
[419845413,1775416246014,-1000.0,0.00014247,2]
[419845414,1775416246023,-1000.0,0.00014247,2]
[419845415,1775416246032,-1000.0,0.00014247,2]
[419845416,1775416246041,-189.74788311,0.00014247,2]
[419845417,1775416246051,-1000.0,0.00014247,2]
[419845418,1775416246060,-1000.0,0.00014247,2]
[419845419,1775416246070,-730.09729929,0.00014247,2]
[419845420,1775416246079,-500.76237275,0.00014247,2]
[419845421,1775416246088,-1000.0,0.00014247,2]
[419845422,1775416246098,-1000.0,0.00014247,2]
[419845423,1775416246107,-180.00096908,0.00014247,2]
[419845424,1775416246116,-1000.0,0.00014247,2]
[419845425,1775416246125,-1000.0,0.00014247,2]
[419845426,1775416246134,-1000.0,0.00014247,2]
[419845427,1775416246144,-1000.0,0.00014247,2]
[419845428,1775416246153,-743.80429884,0.00014247,2]
[419845429,1775416246162,-1000.0,0.00014247,2]
[419845430,1775416246170,-1000.0,0.00014247,2]
[419845431,1775416246179,-1000.0,0.00014247,2]
[419845432,1775416246188,-1000.0,0.00014247,2]
[419845433,1775416246197,-1000.0,0.00014247,2]
[419845434,1775416246206,-1000.0,0.00014247,2]
[419845435,1775416246215,-790.32775663,0.00014247,2]
[419845436,1775416246224,-1000.0,0.00014247,2]
[419845437,1775416246233,-500.99241895,0.00014247,2]
[419845438,1775416246242,-500.0,0.00014247,2]
[419845439,1775416246251,-1000.0,0.00014247,2]
[419845440,1775416246260,-500.0,0.00014247,2]
[419845441,1775416246270,-6203.9605955,0.00014249,2]
[419845442,1775416246279,-478.15,0.00014316,2]
[419845443,1775416246288,-477.63,0.00014316,2]
[419845444,1775416246297,-1800.0,0.00014344,2]
[419845445,1775416246306,-1800.0,0.00014344,2]
[419845446,1775416246316,-1800.0,0.00014344,2]
[419845447,1775416246325,-1800.0,0.00014344,2]
[419845448,1775416246334,-1800.0,0.00014344,2]
[419845449,1775416246343,-1800.0,0.00014344,2]
[419845450,1775416246352,-1800.0,0.00014344,2]
[419845451,1775416246361,-1800.0,0.00014344,2]
[419845452,1775416246370,-1800.0,0.00014344,2]
[419845453,1775416246380,-1793.0,0.00014344,2]
[419845454,1775416246389,-500.0,0.00014383,2]
[419845455,1775416246397,-953.66,0.00014383,2]
[419845456,1775416246406,-500.0,0.00014383,2]
[419845457,1775416246415,-827.5,0.00014383,2]
[419845458,1775416246424,-1282.44,0.00014383,2]
[419845459,1775416246434,-166.66,0.00014384,2]
[419845460,1775416246443,-500.0,0.00014389,2]
[419845461,1775416246452,-10405.80591116,0.0001439,2]
[419845462,1775416246461,-166.66,0.00014395,2]
[419845463,1775416246470,-24629.54664536,0.00014397,2]
[419845464,1775416246480,-21076.04228361,0.00014397,2]
[419845465,1775416246489,-150.0,0.000144,2]
[419845466,1775416246498,-150.0,0.000144,2]
[419845467,1775416246507,-150.0,0.000144,2]
[419845468,1775416246516,-150.0,0.000144,2]
[419845469,1775416246525,-150.0,0.000144,2]
[419845470,1775416246534,-150.0,0.000144,2]
[419845471,1775416246543,-150.0,0.000144,2]
[419845472,1775416246552,-150.0,0.000144,2]
[419845473,1775416246561,-150.0,0.000144,2]
[419845474,1775416246571,-150.0,0.000144,2]
[419845475,1775416246579,-150.0,0.000144,2]
[419845476,1775416246588,-150.0,0.000144,2]
[419845477,1775416246598,-150.0,0.000144,2]
[419845478,1775416246607,-150.05716299,0.000144,2]
[419845479,1775416246616,-150.0,0.000144,2]
[419845480,1775416246626,-2000.0,0.00014403,2]
[419845481,1775416246635,-2000.0,0.00014403,2]
[419845482,1775416246644,-2000.0,0.00014403,2]
[419845483,1775416246656,-2000.0,0.00014403,2]
[419845484,1775416246665,-2000.0,0.00014403,2]
[419845485,1775416246674,-2000.0,0.00014403,2]
[419845486,1775416246683,-2000.0,0.00014403,2]
[419845487,1775416246692,-2000.0,0.00014403,2]
[419845488,1775416246701,-2000.0,0.00014403,2]
[419845489,1775416246710,-2000.0,0.00014403,2]
[419845490,1775416246719,-150.0,0.00014418,2]
[419845491,1775416246728,-150.0,0.00014421,2]
[419845492,1775416246737,-150.0,0.00014423,2]
[419845493,1775416246747,-150.0,0.00014429,2]
[419845494,1775416246756,-150.0,0.00014429,2]
[419845495,1775416246764,-150.0,0.0001443,2]
[419845496,1775416246774,-150.0,0.00014436,2]
[419845497,1775416246783,-150.0,0.00014443,2]
[419845498,1775416246792,-1007.09,0.00014444,2]
[419845499,1775416246801,-500.0,0.00014444,2]
[419845500,1775416246811,-500.0,0.00014444,2]
[419845501,1775416246820,-500.0,0.00014444,2]
[419845502,1775416246829,-500.0,0.00014444,2]
[419845503,1775416246839,-613.93,0.00014444,2]
[419845504,1775416246848,-2940.81,0.00014445,2]
[419845505,1775416246857,-150.0,0.00014446,2]
[419845506,1775416246867,-150.0,0.00014453,2]
[419845507,1775416246876,-150.0,0.00014455,2]
[419845508,1775416246885,-477.63,0.00014456,2]
[419845509,1775416246894,-150.0,0.00014458,2]
[419845510,1775416246904,-150.0,0.00014458,2]
[419845511,1775416246913,-150.0,0.00014459,2]
[419845512,1775416246922,-150.0,0.00014464,2]
[419845513,1775416246931,-150.0,0.00014467,2]
[419845514,1775416246940,-150.0,0.00014469,2]
[419845515,1775416246950,-150.0,0.00014473,2]
[419845516,1775416246959,-150.0,0.00014485,2]
[419845517,1775416246968,-150.0,0.00014487,2]
[419845518,1775416246977,-150.0,0.00014487,2]
[419845519,1775416246986,-150.0,0.00014489,2]
[419845520,1775416246995,-150.0,0.00014491,2]
[419845521,1775416247004,-150.0,0.00014491,2]
[419845522,1775416247014,-150.0,0.000145,2]
[419845523,1775416247023,-274.0,0.00014506,4]
[419845524,1775416247033,-186.3116382,0.00014506,4]
[419845525,1775416247042,-150.0,0.00014507,2]
[419845526,1775416247051,-150.0,0.00014507,2]
[419845527,1775416247061,-150.0,0.00014509,2]
[419845528,1775416247071,-150.0,0.00014514,2]
[419845529,1775416247080,-150.0,0.00014516,2]
[419845530,1775416247090,-150.0,0.00014516,2]
[419845532,1775416247100,-150.0,0.00014519,2]
[419845534,1775416247109,-500.0,0.00014521,2]
[419845535,1775416247119,-150.0,0.00014527,2]
[419845537,1775416247130,-150.0,0.00014528,2]
[419845538,1775416247140,-2000.0,0.00014533,2]
[419845539,1775416247150,-2000.0,0.00014533,2]
[419845540,1775416247160,-2000.0,0.00014533,2]
[419845542,1775416247170,-2000.0,0.00014533,2]
[419845543,1775416247179,-2000.0,0.00014533,2]
[419845544,1775416247189,-2000.0,0.00014533,2]
[419845545,1775416247199,-2000.0,0.00014533,2]
[419845546,1775416247208,-2000.0,0.00014533,2]
[419845547,1775416247218,-2000.0,0.00014533,2]
[419845548,1775416247228,-2000.0,0.00014533,2]
[419845549,1775416247238,-150.0,0.00014533,2]
[419845550,1775416247247,-150.0,0.00014537,2]
[419845551,1775416247256,-150.0,0.00014545,2]
[419845552,1775416247266,-150.0,0.00014545,2]
[419845553,1775416247275,-150.0,0.00014545,2]
[419845554,1775416247284,-1199.80508007,0.00014548,2]
[419845555,1775416247294,-150.0,0.00014548,2]
[419845556,1775416247303,-150.0,0.00014549,2]
[419845557,1775416247312,-150.0,0.0001456,2]
[419845558,1775416247322,-150.0,0.0001456,2]
[419845559,1775416247332,-150.0,0.00014564,2]
[419845560,1775416247342,-414.97,0.00014567,2]
[419845561,1775416247351,-150.0,0.00014571,2]
[419845562,1775416247360,-150.0,0.00014575,2]
[419845563,1775416247370,-150.0,0.00014575,2]
[419845564,1775416247379,-150.0,0.00014578,2]
[419845565,1775416247389,-150.0,0.00014582,2]
[419845566,1775416247399,-150.0,0.00014583,2]
[419845567,1775416247409,-150.0,0.00014592,2]
[419845568,1775416247419,-150.0,0.000146,2]
[419845569,1775416247428,-150.0,0.000146,2]
[419845570,1775416247438,-150.0,0.000146,2]
[419845571,1775416247447,-150.0,0.00014604,2]
[419845572,1775416247457,-150.0,0.00014604,2]
[419845573,1775416247466,-150.0,0.00014606,2]
[419845574,1775416247476,-150.0,0.00014607,2]
[419845575,1775416247486,-150.0,0.00014613,2]
[419845576,1775416247495,-150.0,0.00014613,2]
[419845577,1775416247505,-150.0,0.00014618,2]
[419845578,1775416247515,-150.0,0.00014629,2]
[419845579,1775416247524,-150.0,0.00014633,2]
[419845580,1775416247534,-150.0,0.00014633,2]
[419845581,1775416247544,-150.0,0.00014635,2]
[419845582,1775416247554,-150.0,0.00014636,2]
[419845583,1775416247563,-150.0,0.00014637,2]
[419845584,1775416247573,-150.0,0.00014651,2]
[419845585,1775416247583,-150.0,0.00014655,2]
[419845586,1775416247592,-150.0,0.00014656,2]
[419845587,1775416247602,-150.0,0.00014662,2]
[419845588,1775416247612,-150.0,0.00014662,2]
[419845589,1775416247622,-6203.9605955,0.00014662,2]
[419845590,1775416247631,-150.0,0.00014667,2]
[419845591,1775416247641,-150.0,0.00014667,2]
[419845592,1775416247650,-150.0,0.00014667,2]
[419845593,1775416247660,-150.0,0.00014667,2]
[419845594,1775416247669,-150.0,0.00014673,2]
[419845595,1775416247679,-150.0,0.00014674,2]
[419845596,1775416247688,-150.0,0.00014677,2]
[419845597,1775416247698,-150.0,0.00014691,2]
[419845598,1775416247708,-150.0,0.00014691,2]
[419845599,1775416247718,-150.0,0.00014691,2]
[419845600,1775416247727,-1000.0,0.00014692,2]
[419845601,1775416247737,-150.0,0.00014696,2]
[419845602,1775416247747,-500.0,0.00014697,2]
[419845603,1775416247756,-1103.2,0.00014697,2]
[419845604,1775416247767,-985.3,0.00014697,2]
[419845605,1775416247777,-652.81,0.00014697,2]
[419845606,1775416247786,-150.0,0.00014697,2]
[419845607,1775416247796,-24629.54664536,0.00014698,2]
[419845608,1775416247805,-21076.04228361,0.00014698,2]
[419845609,1775416247815,-150.0,0.00014699,2]
[419845610,1775416247825,-150.0,0.000147,2]
[419845611,1775416247835,-150.0,0.00014709,2]
[419845612,1775416247845,-150.0,0.0001472,2]
[419845613,1775416247855,-150.0,0.0001472,2]
[419845614,1775416247864,-150.0,0.0001472,2]
[419845615,1775416247874,-150.0,0.0001472,2]
[419845616,1775416247883,-150.0,0.0001472,2]
[419845617,1775416247893,-150.0,0.00014726,2]
[419845618,1775416247903,-150.0,0.00014727,2]
[419845619,1775416247913,-244.7,0.00014733,2]
[419845620,1775416247923,-150.0,0.00014733,2]
[419845621,1775416247932,-477.65,0.00014737,2]
[419845622,1775416247943,-450.09009567,0.00014737,2]
[419845623,1775416247953,-150.0,0.00014741,2]
[419845624,1775416247963,-150.0,0.00014743,2]
[419845625,1775416247972,-150.0,0.00014745,2]
[419845626,1775416247982,-150.0,0.00014749,2]
[419845627,1775416247992,-150.0,0.00014749,2]
[419845628,1775416248003,-150.0,0.00014756,2]
[419845629,1775416248013,-150.0,0.00014763,2]
[419845630,1775416248402,-150.0,0.00014764,2]
[419845631,1775416248414,-150.0,0.00014766,2]
[419845632,1775416248425,-150.0,0.00014773,2]
[419845633,1775416248437,-150.0,0.00014778,2]
[419845634,1775416248449,-150.0,0.00014778,2]
[419845635,1775416248459,-150.0,0.00014782,2]
[419845636,1775416248470,-150.0,0.00014784,2]
[419845637,1775416248481,-150.0,0.00014785,2]
[419845638,1775416248492,-150.0,0.00014789,2]
[419845639,1775416248503,-1500.0,0.00014795,2]
[419845640,1775416248513,-1500.0,0.00014795,2]
[419845641,1775416248523,-1500.0,0.00014795,2]
[419845642,1775416248533,-1500.0,0.00014795,2]
[419845643,1775416248544,-1503.24663382,0.00014795,2]
[419845644,1775416248553,-1500.0,0.00014795,2]
[419845645,1775416248563,-1500.0,0.00014795,2]
[419845646,1775416248573,-1500.0,0.00014795,2]
[419845647,1775416248583,-1500.0,0.00014795,2]
[419845648,1775416248592,-1500.0,0.00014795,2]
[419845649,1775416248602,-1500.0,0.00014795,2]
[419845650,1775416248612,-1500.0,0.00014795,2]
[419845651,1775416248622,-1500.0,0.00014795,2]
[419845652,1775416248632,-1318.06583411,0.00014795,2]
[419845653,1775416248642,-1500.0,0.00014795,2]
[419845654,1775416248655,-1500.0,0.00014795,2]
[419845655,1775416248667,-1500.0,0.00014795,2]
[419845656,1775416248677,-1500.0,0.00014795,2]
[419845657,1775416248690,-418.3764967,0.00014795,2]
[419845658,1775416248700,-1500.0,0.00014795,2]
[419845659,1775416248711,-1500.0,0.00014795,2]
[419845660,1775416248723,-1500.0,0.00014795,2]
[419845661,1775416248735,-1500.0,0.00014795,2]
[419845662,1775416248747,-1500.0,0.00014795,2]
[419845663,1775416248758,-1500.0,0.00014795,2]
[419845664,1775416248769,-186.27125357,0.00014795,2]
[419845665,1775416248779,-1500.0,0.00014795,2]
[419845666,1775416248789,-500.0,0.00014795,2]
[419845667,1775416248801,-553.41835149,0.00014795,2]
[419845668,1775416248812,-150.0,0.000148,2]
[419845669,1775416248823,-150.0,0.000148,2]
[419845670,1775416248835,-150.0,0.000148,2]
[419845671,1775416248847,-150.0,0.000148,2]
[419845672,1775416248858,-150.0,0.000148,2]
[419845673,1775416248868,-150.0,0.00014805,2]
[419845674,1775416248878,-150.0,0.00014807,2]
[419845675,1775416248888,-150.0,0.00014807,2]
[419845676,1775416248898,-150.0,0.00014811,2]
[419845677,1775416248908,-150.0,0.00014815,2]
[419845678,1775416248918,-150.0,0.00014818,2]
[419845679,1775416248928,-500.0,0.00014826,2]
[419845680,1775416248938,-281.32,0.00014826,2]
[419845681,1775416248948,-150.0,0.00014827,2]
[419845682,1775416248958,-150.0,0.00014827,2]
[419845683,1775416248968,-500.0,0.00014832,2]
[419845684,1775416248978,-150.0,0.00014834,2]
[419845685,1775416248988,-150.0,0.00014836,2]
[419845686,1775416248998,-150.0,0.00014836,2]
[419845687,1775416249008,-150.0,0.00014836,2]
[419845688,1775416249018,-500.0,0.00014841,2]
[419845689,1775416249028,-166.66,0.00014841,2]
[419845690,1775416249038,-150.0,0.00014844,2]
[419845691,1775416249048,-500.0,0.00014847,2]
[419845692,1775416249059,-213.94,0.00014847,2]
[419845693,1775416249069,-150.0,0.00014848,2]
[419845694,1775416249079,-175.25452362,0.00014851,7]
[419845695,1775416249090,-150.0,0.00014855,2]
[419845696,1775416249102,-500.0,0.00014856,2]
[419845697,1775416249113,-281.32,0.00014856,2]
[419845698,1775416249123,-150.0,0.00014857,2]
[419845699,1775416249133,-500.0,0.00014861,2]
[419845700,1775416249143,-500.0,0.00014863,2]
[419845701,1775416249154,-500.0,0.00014863,2]
[419845702,1775416249165,-500.0,0.00014863,2]
[419845703,1775416249175,-500.0,0.00014863,2]
[419845704,1775416249187,-500.0,0.00014863,2]
[419845705,1775416249197,-500.0,0.00014863,2]
[419845706,1775416249207,-500.0,0.00014863,2]
[419845707,1775416249217,-4115.699106,0.00014864,7]
[419845708,1775416249227,-3387.062601,0.00014864,2]
[419845709,1775416249237,-8624.684517,0.00014864,7]
[419845710,1775416249248,-7463.721232,0.00014864,2]
[419845711,1775416249258,-150.0,0.00014865,2]
[419845712,1775416249268,-150.0,0.00014865,2]
[419845713,1775416249277,-150.0,0.00014867,2]
[419845714,1775416249287,-150.0,0.00014869,2]
[419845715,1775416249299,-150.0,0.00014873,2]
[419845716,1775416249309,-150.0,0.00014874,2]
[419845717,1775416249320,-150.0,0.0001488,2]
[419845718,1775416249330,-150.0,0.0001488,2]
[419845719,1775416249341,-150.0,0.00014891,2]
[419845720,1775416249351,-150.0,0.00014891,2]
[419845721,1775416249361,-150.0,0.00014895,2]
[419845722,1775416249371,-150.0,0.00014895,2]
[419845723,1775416249381,-229.3073468,0.000149,2]
[419845724,1775416249391,-150.0,0.000149,2]
[419845725,1775416249402,-150.0,0.00014903,2]
[419845726,1775416249411,-150.0,0.00014904,2]
[419845727,1775416249421,-3000.0,0.00014904,2]
[419845728,1775416249431,-150.0,0.00014909,2]
[419845729,1775416249441,-150.0,0.00014912,2]
[419845730,1775416249451,-150.0,0.00014924,2]
[419845731,1775416249461,-150.0,0.00014924,2]
[419845732,1775416249471,-150.0,0.00014926,2]
[419845733,1775416249481,-150.0,0.00014927,2]
[419845734,1775416249491,-1000.0,0.00014932,2]
[419845735,1775416249501,-150.0,0.00014933,2]
[419845736,1775416249511,-150.0,0.00014933,2]
[419845737,1775416249521,-150.0,0.00014933,2]
[419845738,1775416249531,-150.0,0.00014933,2]
[419845739,1775416249541,-150.0,0.00014933,2]
[419845740,1775416249551,-150.0,0.00014945,2]
[419845741,1775416249561,-150.0,0.00014949,2]
[419845742,1775416249571,-500.0,0.0001495,2]
[419845743,1775416249582,-500.0,0.0001495,2]
[419845744,1775416249592,-500.0,0.0001495,2]
[419845745,1775416249603,-500.0,0.0001495,2]
[419845746,1775416249614,-953.66,0.0001495,2]
[419845747,1775416249624,-953.66,0.0001495,2]
[419845748,1775416249635,-1103.2,0.0001495,2]
[419845749,1775416249645,-1103.2,0.0001495,2]
[419845750,1775416249655,-500.0,0.0001495,2]
[419845751,1775416249666,-500.0,0.0001495,2]
[419845752,1775416249676,-985.3,0.0001495,2]
[419845753,1775416249686,-985.3,0.0001495,2]
[419845754,1775416249695,-827.5,0.0001495,2]
[419845755,1775416249705,-827.5,0.0001495,2]
[419845756,1775416249715,-1282.44,0.0001495,2]